[Event "*** Titled Tuesday 3|2 Blitz"]
[Site "Chess.com"]
[Date "2016.10.04"]
[Round "5"]
[White "Izoria123"]
[Black "Mornar1951"]
[Result "0-1"]
[WhiteElo "2562"]
[BlackElo "2594"]
[TimeControl "180+2"]
[EndTime "18:06:54 PDT"]
[Termination "Mornar1951 won by resignation"]

1. e4 {[%clk 0:03:02]} 1... d5 {[%clk 0:02:59.7]} 2. exd5 {[%clk 0:03:02]} 2...
Nf6 {[%clk 0:03:01.3]} 3. Nf3 {[%clk 0:02:59.3]} 3... Bg4 {[%clk 0:03:01.3]} 4.
Bb5+ {[%clk 0:02:58.4]} 4... Nbd7 {[%clk 0:03:01.4]} 5. h3 {[%clk 0:02:58.2]}
5... Bh5 {[%clk 0:03:01.5]} 6. Nc3 {[%clk 0:02:49.2]} 6... a6 {[%clk 0:03:02.1]}
7. Be2 {[%clk 0:02:49.3]} 7... Nb6 {[%clk 0:03:02.4]} 8. Ne5 {[%clk 0:02:41.6]}
8... Bxe2 {[%clk 0:03:01.3]} 9. Qxe2 {[%clk 0:02:43.5]} 9... Nbxd5 {[%clk
0:03:00.6]} 10. O-O {[%clk 0:02:35.9]} 10... e6 {[%clk 0:02:59.4]} 11. d4 {[%clk
0:02:33.5]} 11... Be7 {[%clk 0:02:55.8]} 12. Ne4 {[%clk 0:02:32.4]} 12... Nxe4
{[%clk 0:02:46.2]} 13. Qxe4 {[%clk 0:02:34.2]} 13... c6 {[%clk 0:02:47.4]} 14.
Qg4 {[%clk 0:02:32.2]} 14... Bf6 {[%clk 0:02:46.6]} 15. c4 {[%clk 0:02:31.3]}
15... Ne7 {[%clk 0:02:43.5]} 16. Rd1 {[%clk 0:02:28.7]} 16... O-O {[%clk
0:02:36.1]} 17. Bf4 {[%clk 0:02:11.5]} 17... Ng6 {[%clk 0:02:29.9]} 18. Bg3
{[%clk 0:02:11.8]} 18... Qe7 {[%clk 0:02:17]} 19. Nf3 {[%clk 0:01:52.5]} 19...
Rfd8 {[%clk 0:02:15.9]} 20. Qe4 {[%clk 0:01:50.6]} 20... Rd7 {[%clk 0:02:11.2]}
21. Rd3 {[%clk 0:01:44]} 21... Rad8 {[%clk 0:02:12.1]} 22. Rad1 {[%clk
0:01:45.6]} 22... h6 {[%clk 0:01:50.5]} 23. b3 {[%clk 0:01:44.8]} 23... Qa3
{[%clk 0:01:46.4]} 24. Qe2 {[%clk 0:01:43.5]} 24... Qe7 {[%clk 0:01:42.9]} 25.
Bh2 {[%clk 0:01:21.5]} 25... b5 {[%clk 0:01:42.2]} 26. Qc2 {[%clk 0:01:13.8]}
26... Qb4 {[%clk 0:01:39]} 27. Bg3 {[%clk 0:01:09.9]} 27... a5 {[%clk
0:01:23.3]} 28. a4 {[%clk 0:01:02.5]} 28... bxa4 {[%clk 0:01:16.9]} 29. bxa4
{[%clk 0:01:02.6]} 29... Rb7 {[%clk 0:01:18.1]} 30. d5 {[%clk 0:00:56]} 30...
cxd5 {[%clk 0:01:09.3]} 31. cxd5 {[%clk 0:00:57.9]} 31... exd5 {[%clk
0:01:09.1]} 32. Rxd5 {[%clk 0:00:59.5]} 32... Rxd5 {[%clk 0:01:05.6]} 33. Rxd5
{[%clk 0:01:01.4]} 33... Qb1+ {[%clk 0:01:06.6]} 34. Qxb1 {[%clk 0:01:01.5]}
34... Rxb1+ {[%clk 0:01:08.5]} 35. Kh2 {[%clk 0:01:02.6]} 35... Bc3 {[%clk
0:01:09.6]} 36. Rb5 {[%clk 0:00:48]} 36... Ra1 {[%clk 0:01:04.9]} 37. Rb8+
{[%clk 0:00:43.7]} 37... Kh7 {[%clk 0:01:05.3]} 38. Rb7 {[%clk 0:00:45.6]} 38...
f6 {[%clk 0:00:58.1]} 39. Rc7 {[%clk 0:00:43.4]} 39... Bb4 {[%clk 0:00:54.8]}
40. h4 {[%clk 0:00:43.6]} 40... h5 {[%clk 0:00:47.3]} 41. Rb7 {[%clk 0:00:43.6]}
41... Rxa4 {[%clk 0:00:45]} 42. Rb5 {[%clk 0:00:44.2]} 42... Kh6 {[%clk
0:00:46.2]} 43. Bc7 {[%clk 0:00:42.7]} 43... Ne7 {[%clk 0:00:43.4]} 44. g3
{[%clk 0:00:37.3]} 44... Kg6 {[%clk 0:00:43]} 45. Kg2 {[%clk 0:00:37.9]} 45...
Nf5 {[%clk 0:00:39.7]} 46. Bf4 {[%clk 0:00:38.9]} 46... Ra2 {[%clk 0:00:36.5]}
47. Kf1 {[%clk 0:00:36]} 47... Bc3 {[%clk 0:00:31.5]} 48. Rc5 {[%clk 0:00:19.8]}
48... Ba1 {[%clk 0:00:24.7]} 49. Rd5 {[%clk 0:00:15.6]} 49... a4 {[%clk
0:00:25.1]} 50. g4 {[%clk 0:00:15.9]} 50... hxg4 {[%clk 0:00:20.4]} 51. h5+
{[%clk 0:00:17.4]} 51... Kf7 {[%clk 0:00:21.3]} 52. Rxf5 {[%clk 0:00:19]} 52...
gxf3 {[%clk 0:00:21.9]} 53. Kg1 {[%clk 0:00:20]} 53... Bd4 {[%clk 0:00:21.8]}
54. Be3 {[%clk 0:00:20.5]} 54... Bxe3 {[%clk 0:00:22]} 55. fxe3 {[%clk
0:00:22.4]} 55... a3 {[%clk 0:00:20.1]} 56. Ra5 {[%clk 0:00:21.8]} 56... Kg8
{[%clk 0:00:17.4]} 57. Ra7 {[%clk 0:00:18.3]} 57... Kh7 {[%clk 0:00:18.4]} 58.
Kf1 {[%clk 0:00:18.7]} 58... Kh6 {[%clk 0:00:19.3]} 59. Kg1 {[%clk 0:00:19.1]}
59... Kxh5 {[%clk 0:00:19.1]} 0-1

[Event "*** Titled Tuesday 3|2 Blitz"]
[Site "Chess.com"]
[Date "2016.10.04"]
[Round "5"]
[White "gmjoey1"]
[Black "Newlight1"]
[Result "0-1"]
[WhiteElo "2481"]
[BlackElo "2525"]
[TimeControl "180+2"]
[EndTime "18:06:57 PDT"]
[Termination "Newlight1 won by resignation"]

1. e4 {[%clk 0:03:01.9]} 1... c5 {[%clk 0:03:00.7]} 2. c3 {[%clk 0:02:59.6]}
2... Nf6 {[%clk 0:02:40.1]} 3. e5 {[%clk 0:03:00]} 3... Nd5 {[%clk 0:02:41.8]}
4. d4 {[%clk 0:03:00.9]} 4... cxd4 {[%clk 0:02:40.9]} 5. cxd4 {[%clk 0:03:02.8]}
5... d6 {[%clk 0:02:40.7]} 6. Bc4 {[%clk 0:03:03.4]} 6... dxe5 {[%clk
0:02:40.3]} 7. dxe5 {[%clk 0:03:03.6]} 7... e6 {[%clk 0:02:17.5]} 8. Nf3 {[%clk
0:02:55.7]} 8... Be7 {[%clk 0:02:13.3]} 9. O-O {[%clk 0:02:55.7]} 9... O-O
{[%clk 0:02:11.2]} 10. Qe2 {[%clk 0:02:56.5]} 10... Bd7 {[%clk 0:02:09.7]} 11.
Rd1 {[%clk 0:02:56.5]} 11... Nc6 {[%clk 0:02:10]} 12. Qe4 {[%clk 0:02:49.9]}
12... Rc8 {[%clk 0:01:59.3]} 13. Nc3 {[%clk 0:02:42.8]} 13... Ncb4 {[%clk
0:01:52.2]} 14. Nxd5 {[%clk 0:02:29.4]} 14... Nxd5 {[%clk 0:01:48.9]} 15. Bxd5
{[%clk 0:02:30.1]} 15... exd5 {[%clk 0:01:50.8]} 16. Qxd5 {[%clk 0:02:31.1]}
16... Be6 {[%clk 0:01:52]} 17. Qxd8 {[%clk 0:02:28.4]} 17... Rfxd8 {[%clk
0:01:53.9]} 18. Be3 {[%clk 0:02:24.5]} 18... Rxd1+ {[%clk 0:01:52]} 19. Rxd1
{[%clk 0:02:24.9]} 19... Rc2 {[%clk 0:01:53.9]} 20. Bd4 {[%clk 0:01:58.6]} 20...
h6 {[%clk 0:01:52.9]} 21. Bc3 {[%clk 0:01:58.7]} 21... Bc5 {[%clk 0:01:50.9]}
22. Nd4 {[%clk 0:01:49.8]} 22... Bxd4 {[%clk 0:01:45]} 23. Bxd4 {[%clk
0:01:51.7]} 23... Bxa2 {[%clk 0:01:43.6]} 24. f3 {[%clk 0:01:48.5]} 24... Bb3
{[%clk 0:01:42.7]} 25. Ra1 {[%clk 0:01:29.2]} 25... a6 {[%clk 0:01:38.2]} 26.
Bc3 {[%clk 0:01:30.2]} 26... Kf8 {[%clk 0:01:20.8]} 27. Ra3 {[%clk 0:01:23.3]}
27... Bd5 {[%clk 0:01:18]} 28. Ra5 {[%clk 0:01:15.2]} 28... Bc6 {[%clk
0:01:15.2]} 29. Ra1 {[%clk 0:01:13.2]} 29... Ke7 {[%clk 0:01:12]} 30. Rd1 {[%clk
0:01:14.1]} 30... Ke6 {[%clk 0:01:11.2]} 31. Rd6+ {[%clk 0:01:11.7]} 31... Kf5
{[%clk 0:01:12.3]} 32. Rd4 {[%clk 0:01:08.1]} 32... a5 {[%clk 0:00:51.9]} 33.
Rd6 {[%clk 0:00:43.8]} 33... a4 {[%clk 0:00:49.2]} 34. Rd3 {[%clk 0:00:30.1]}
34... g5 {[%clk 0:00:44.1]} 35. h3 {[%clk 0:00:30.9]} 35... Kf4 {[%clk 0:00:42]}
36. Kh2 {[%clk 0:00:28.4]} 36... Bb5 {[%clk 0:00:41.9]} 37. Rd6 {[%clk
0:00:23.2]} 37... Bf1 {[%clk 0:00:39]} 38. Rd2 {[%clk 0:00:15.7]} 38... Rxd2
{[%clk 0:00:36.6]} 39. Bxd2+ {[%clk 0:00:17.6]} 39... Kxe5 {[%clk 0:00:38.5]}
40. h4 {[%clk 0:00:19.5]} 40... gxh4 {[%clk 0:00:31]} 41. Bxh6 {[%clk 0:00:19]}
41... b5 {[%clk 0:00:31.5]} 42. Bg5 {[%clk 0:00:19.6]} 42... b4 {[%clk
0:00:27.2]} 43. Bd2 {[%clk 0:00:16.5]} 43... a3 {[%clk 0:00:24.6]} 44. bxa3
{[%clk 0:00:16.9]} 44... bxa3 {[%clk 0:00:22.6]} 45. g3 {[%clk 0:00:16.5]} 45...
hxg3+ {[%clk 0:00:18.7]} 46. Kxg3 {[%clk 0:00:18.4]} 46... Kd4 {[%clk
0:00:19.6]} 47. Bc1 {[%clk 0:00:18.7]} 47... a2 {[%clk 0:00:20]} 48. Bb2+ {[%clk
0:00:19.9]} 48... Kd3 {[%clk 0:00:21.1]} 49. Kf2 {[%clk 0:00:21.3]} 49... Bh3
{[%clk 0:00:21.4]} 50. Ke1 {[%clk 0:00:21.9]} 50... Kc2 {[%clk 0:00:22.7]} 51.
Bf6 {[%clk 0:00:19.2]} 51... Kb1 {[%clk 0:00:23.3]} 52. Kf2 {[%clk 0:00:18]}
52... a1=Q {[%clk 0:00:24.8]} 53. Bxa1 {[%clk 0:00:19.2]} 53... Kxa1 {[%clk
0:00:26.7]} 54. Ke3 {[%clk 0:00:20.4]} 54... Be6 {[%clk 0:00:28.6]} 55. Kf4
{[%clk 0:00:22]} 55... Kb2 {[%clk 0:00:30.5]} 56. Ke5 {[%clk 0:00:23.9]} 56...
Kc3 {[%clk 0:00:32.1]} 57. f4 {[%clk 0:00:25.8]} 57... Kd3 {[%clk 0:00:32.3]}
58. f5 {[%clk 0:00:27.7]} 58... Ba2 {[%clk 0:00:33.5]} 59. Kf4 {[%clk
0:00:24.9]} 59... Kd4 {[%clk 0:00:34.2]} 60. Kg4 {[%clk 0:00:24.5]} 60... Ke5
{[%clk 0:00:35.1]} 61. Kg5 {[%clk 0:00:26.4]} 61... Bb1 {[%clk 0:00:32.9]} 62.
Kg4 {[%clk 0:00:28.3]} 62... Bxf5+ {[%clk 0:00:33.3]} 63. Kg5 {[%clk 0:00:30.2]}
63... Be6 {[%clk 0:00:32.8]} 64. Kh4 {[%clk 0:00:29]} 64... f5 {[%clk
0:00:34.7]} 65. Kg3 {[%clk 0:00:30.9]} 65... f4+ {[%clk 0:00:36.6]} 66. Kf2
{[%clk 0:00:32.2]} 66... Ke4 {[%clk 0:00:38.1]} 67. Ke2 {[%clk 0:00:34.1]} 67...
Bg4+ {[%clk 0:00:38.8]} 68. Kf2 {[%clk 0:00:36]} 68... f3 {[%clk 0:00:40.7]} 69.
Kg1 {[%clk 0:00:34.9]} 69... Ke3 {[%clk 0:00:41.2]} 70. Kh2 {[%clk 0:00:36.8]}
70... f2 {[%clk 0:00:41.2]} 71. Kg2 {[%clk 0:00:38.7]} 71... Bh3+ {[%clk
0:00:39.4]} 72. Kg3 {[%clk 0:00:40.6]} 72... f1=Q {[%clk 0:00:39.7]} 73. Kh4
{[%clk 0:00:42.5]} 73... Qg2 {[%clk 0:00:38.2]} 0-1

[Event "*** Titled Tuesday 3|2 Blitz"]
[Site "Chess.com"]
[Date "2016.10.04"]
[Round "5"]
[White "dretch"]
[Black "platy3"]
[Result "1/2-1/2"]
[WhiteElo "2660"]
[BlackElo "2748"]
[TimeControl "180+2"]
[EndTime "18:08:17 PDT"]
[Termination "Game drawn by agreement"]

1. d4 {[%clk 0:03:01.9]} 1... Nf6 {[%clk 0:03:00.8]} 2. c4 {[%clk 0:03:03.3]}
2... e6 {[%clk 0:03:02.4]} 3. Nc3 {[%clk 0:03:04.9]} 3... Bb4 {[%clk 0:03:03.8]}
4. Qc2 {[%clk 0:03:06.3]} 4... b6 {[%clk 0:03:03.9]} 5. e4 {[%clk 0:03:06.2]}
5... c5 {[%clk 0:03:05.3]} 6. a3 {[%clk 0:03:06.2]} 6... Bxc3+ {[%clk 0:03:05]}
7. bxc3 {[%clk 0:03:08.1]} 7... Bb7 {[%clk 0:03:06.1]} 8. Bd3 {[%clk 0:03:09.2]}
8... b5 {[%clk 0:02:58.2]} 9. Qb1 {[%clk 0:02:51.2]} 9... cxd4 {[%clk
0:02:44.3]} 10. cxd4 {[%clk 0:02:50.5]} 10... bxc4 {[%clk 0:02:45.7]} 11. Qxb7
{[%clk 0:02:28.1]} 11... cxd3 {[%clk 0:02:47]} 12. Nf3 {[%clk 0:01:50.5]} 12...
Nc6 {[%clk 0:02:46.3]} 13. e5 {[%clk 0:01:43.7]} 13... Nd5 {[%clk 0:02:47.5]}
14. O-O {[%clk 0:01:43.5]} 14... O-O {[%clk 0:02:40.7]} 15. Qa6 {[%clk
0:01:40.1]} 15... Qb6 {[%clk 0:02:31.4]} 16. Qxd3 {[%clk 0:01:39.6]} 16... Rfc8
{[%clk 0:02:32.4]} 17. Ng5 {[%clk 0:01:28.3]} 17... f5 {[%clk 0:02:33.8]} 18.
exf6 {[%clk 0:01:22.5]} 18... Nxf6 {[%clk 0:02:35]} 19. Be3 {[%clk 0:01:19.7]}
19... Qa5 {[%clk 0:02:27.5]} 20. h3 {[%clk 0:01:11.7]} 20... Ne7 {[%clk
0:02:25.8]} 21. Rfb1 {[%clk 0:01:05.8]} 21... Qf5 {[%clk 0:02:20.9]} 22. Qa6
{[%clk 0:00:57.4]} 22... Ned5 {[%clk 0:02:17.4]} 23. Nf3 {[%clk 0:00:47.5]}
23... Nc3 {[%clk 0:02:01.1]} 24. Rb7 {[%clk 0:00:39.5]} 24... Rc6 {[%clk
0:01:56.1]} 25. Qf1 {[%clk 0:00:29.9]} 25... Rb6 {[%clk 0:01:55.8]} 26. Rxb6
{[%clk 0:00:23]} 26... axb6 {[%clk 0:01:57.7]} 27. Qc4 {[%clk 0:00:15.4]} 27...
Nfd5 {[%clk 0:01:53.9]} 28. Bd2 {[%clk 0:00:14]} 28... Ne4 {[%clk 0:01:52.6]}
29. Be1 {[%clk 0:00:12.4]} 29... d6 {[%clk 0:01:43.6]} 30. Qb3 {[%clk 0:00:13]}
30... h6 {[%clk 0:01:39.3]} 31. Rc1 {[%clk 0:00:13.8]} 31... Qf7 {[%clk
0:01:31.7]} 32. Qc2 {[%clk 0:00:12.1]} 32... Nef6 {[%clk 0:01:31.7]} 33. Qb3
{[%clk 0:00:11.9]} 33... Qa7 {[%clk 0:01:30.6]} 34. Ra1 {[%clk 0:00:12.1]} 34...
Qa4 {[%clk 0:01:30.6]} 35. Qd3 {[%clk 0:00:13.3]} 35... Qa6 {[%clk 0:01:18.1]}
36. Qb3 {[%clk 0:00:13.5]} 36... Qa4 {[%clk 0:01:17.2]} 37. Qd3 {[%clk
0:00:14.3]} 37... Qc6 {[%clk 0:01:16]} 38. Bd2 {[%clk 0:00:15.1]} 38... Qa4
{[%clk 0:01:12.4]} 39. Bxh6 {[%clk 0:00:12.3]} 39... gxh6 {[%clk 0:00:50.4]} 40.
Qg6+ {[%clk 0:00:13.2]} 40... Kf8 {[%clk 0:00:52]} 41. Qxh6+ {[%clk 0:00:13.5]}
41... Ke8 {[%clk 0:00:53.7]} 42. Qg6+ {[%clk 0:00:07.4]} 42... Kd8 {[%clk
0:00:51.1]} 43. Ng5 {[%clk 0:00:07.5]} 43... Qe8 {[%clk 0:00:51.5]} 44. Qg7
{[%clk 0:00:06.5]} 44... Qe7 {[%clk 0:00:47.4]} 45. Qh8+ {[%clk 0:00:03.2]}
45... Ne8 {[%clk 0:00:48.7]} 46. Qh6 {[%clk 0:00:02.9]} 46... Kd7 {[%clk
0:00:48.4]} 47. Re1 {[%clk 0:00:04]} 47... Ndc7 {[%clk 0:00:46.6]} 48. d5 {[%clk
0:00:04.5]} 48... e5 {[%clk 0:00:48]} 49. Qg6 {[%clk 0:00:04.8]} 49... Qf6
{[%clk 0:00:44.7]} 50. Qh7+ {[%clk 0:00:06.1]} 50... Kc8 {[%clk 0:00:46.2]} 51.
Ne4 {[%clk 0:00:06.8]} 51... Qd8 {[%clk 0:00:42.9]} 52. Qf5+ {[%clk 0:00:06.9]}
52... Kb7 {[%clk 0:00:43.2]} 53. Qf3 {[%clk 0:00:07.6]} 53... Ra5 {[%clk
0:00:41.1]} 54. Rb1 {[%clk 0:00:08.1]} 54... Nxd5 {[%clk 0:00:38.1]} 55. Nc3
{[%clk 0:00:08.2]} 55... Nc7 {[%clk 0:00:39.5]} 56. Rd1 {[%clk 0:00:07]} 56...
Qg8 {[%clk 0:00:39.5]} 57. Ne4 {[%clk 0:00:06.6]} 57... Qg6 {[%clk 0:00:38.5]}
58. Nc3 {[%clk 0:00:07]} 58... Qe6 {[%clk 0:00:35.9]} 59. a4 {[%clk 0:00:06.4]}
59... Ka7 {[%clk 0:00:36]} 60. Ne4 {[%clk 0:00:06.6]} 60... Rxa4 {[%clk
0:00:33.3]} 61. Rc1 {[%clk 0:00:08.2]} 61... Na6 {[%clk 0:00:29.2]} 62. Ng5
{[%clk 0:00:08.9]} 62... Qg8 {[%clk 0:00:30.5]} 63. Qf5 {[%clk 0:00:09.8]} 63...
Nc5 {[%clk 0:00:29.9]} 64. h4 {[%clk 0:00:10]} 64... Ka6 {[%clk 0:00:20.2]} 65.
g3 {[%clk 0:00:10.5]} 65... Qe8 {[%clk 0:00:19.6]} 66. Qc2 {[%clk 0:00:10.4]}
66... Qb5 {[%clk 0:00:19.6]} 67. Rd1 {[%clk 0:00:11]} 67... Nb4 {[%clk
0:00:18.3]} 68. Qf5 {[%clk 0:00:10]} 68... Qd7 {[%clk 0:00:09.6]} 69. Qf3 {[%clk
0:00:10.6]} 69... d5 {[%clk 0:00:09.8]} 70. h5 {[%clk 0:00:11.1]} 70... e4
{[%clk 0:00:11.1]} 71. Qf8 {[%clk 0:00:11.8]} 71... Nbd3 {[%clk 0:00:11.3]} 72.
h6 {[%clk 0:00:11.2]} 72... Qg4 {[%clk 0:00:09.2]} 73. Qa8+ {[%clk 0:00:10.7]}
73... Kb5 {[%clk 0:00:10.2]} 74. Rb1+ {[%clk 0:00:10.6]} 74... Kc4 {[%clk
0:00:11.8]} 75. Qg8 {[%clk 0:00:11.1]} 75... Qe2 {[%clk 0:00:09]} 76. Rf1 {[%clk
0:00:11.4]} 76... Ra1 {[%clk 0:00:09.4]} 77. Rxa1 {[%clk 0:00:10.6]} 77... Qxf2+
{[%clk 0:00:10.9]} 78. Kh1 {[%clk 0:00:12.2]} 78... Qxg3 {[%clk 0:00:10.2]} 79.
Rc1+ {[%clk 0:00:09]} 79... Nxc1 {[%clk 0:00:04.5]} 80. h7 {[%clk 0:00:09.2]}
80... N1d3 {[%clk 0:00:04.5]} 81. Nxe4 {[%clk 0:00:10.3]} 81... Qh3+ {[%clk
0:00:04.8]} 82. Kg1 {[%clk 0:00:11.6]} 82... Qe3+ {[%clk 0:00:06.1]} 83. Kh2
{[%clk 0:00:12.5]} 83... Qf4+ {[%clk 0:00:07.5]} 84. Ng3 {[%clk 0:00:12.9]}
84... Qh4+ {[%clk 0:00:08.3]} 85. Kg1 {[%clk 0:00:13.2]} 85... Qd4+ {[%clk
0:00:07]} 86. Kh2 {[%clk 0:00:13.2]} 86... Qh4+ {[%clk 0:00:07.5]} 87. Kg1
{[%clk 0:00:14.4]} 87... Qd4+ {[%clk 0:00:08.5]} 88. Kh2 {[%clk 0:00:15.5]}
1/2-1/2

[Event "*** Titled Tuesday 3|2 Blitz"]
[Site "Chess.com"]
[Date "2016.10.04"]
[Round "6"]
[White "psv98"]
[Black "Ar4uha"]
[Result "1-0"]
[WhiteElo "2594"]
[BlackElo "2474"]
[TimeControl "180+2"]
[EndTime "18:15:16 PDT"]
[Termination "psv98 won by resignation"]

1. b3 {[%clk 0:03:01.9]} 1... Nf6 {[%clk 0:03:00.6]} 2. Bb2 {[%clk 0:03:03.3]}
2... d5 {[%clk 0:03:00.4]} 3. e3 {[%clk 0:03:03.9]} 3... Bg4 {[%clk 0:03:00.2]}
4. f3 {[%clk 0:03:03.7]} 4... Bf5 {[%clk 0:03:00.1]} 5. Ne2 {[%clk 0:03:04]}
5... h6 {[%clk 0:03:00.2]} 6. Nbc3 {[%clk 0:03:01.6]} 6... c5 {[%clk 0:02:59.2]}
7. d4 {[%clk 0:03:02.4]} 7... Nc6 {[%clk 0:02:59.9]} 8. a3 {[%clk 0:03:01.7]}
8... e6 {[%clk 0:03:00.6]} 9. Qd2 {[%clk 0:03:01.8]} 9... Qa5 {[%clk 0:02:59.2]}
10. g4 {[%clk 0:02:54.2]} 10... Bh7 {[%clk 0:02:59]} 11. h4 {[%clk 0:02:55.2]}
11... cxd4 {[%clk 0:02:52.2]} 12. exd4 {[%clk 0:02:57.1]} 12... Bd6 {[%clk
0:02:48.6]} 13. g5 {[%clk 0:02:43.7]} 13... Nh5 {[%clk 0:02:47.5]} 14. f4 {[%clk
0:02:34.2]} 14... Bf5 {[%clk 0:02:39.9]} 15. Bg2 {[%clk 0:02:32.8]} 15... O-O-O
{[%clk 0:02:39.8]} 16. Bf3 {[%clk 0:02:24.8]} 16... g6 {[%clk 0:02:27.8]} 17. b4
{[%clk 0:02:22]} 17... Qb6 {[%clk 0:02:23.9]} 18. O-O-O {[%clk 0:01:51.8]} 18...
a5 {[%clk 0:02:19]} 19. Na4 {[%clk 0:01:33.2]} 19... Qb5 {[%clk 0:02:18.8]} 20.
Nec3 {[%clk 0:01:32.6]} 20... Qc4 {[%clk 0:01:45.6]} 21. Nb6+ {[%clk 0:01:29.3]}
21... Kc7 {[%clk 0:01:42.3]} 22. Nxc4 {[%clk 0:01:28.3]} 22... Bxf4 {[%clk
0:01:43.1]} 23. Ne3 {[%clk 0:01:28.8]} 1-0

[Event "*** Titled Tuesday 3|2 Blitz"]
[Site "Chess.com"]
[Date "2016.10.04"]
[Round "6"]
[White "jk13"]
[Black "rithwik2002"]
[Result "1-0"]
[WhiteElo "2478"]
[BlackElo "1976"]
[TimeControl "180+2"]
[EndTime "18:15:41 PDT"]
[Termination "jk13 won by resignation"]

1. Nf3 {[%clk 0:03:01.9]} 1... d6 {[%clk 0:02:55.9]} 2. e4 {[%clk 0:03:01.8]}
2... c5 {[%clk 0:02:55]} 3. Bb5+ {[%clk 0:03:02.4]} 3... Bd7 {[%clk 0:02:46.7]}
4. Bxd7+ {[%clk 0:03:03.2]} 4... Nxd7 {[%clk 0:02:48.2]} 5. O-O {[%clk
0:03:04.3]} 5... Ngf6 {[%clk 0:02:48]} 6. Qe2 {[%clk 0:03:05.8]} 6... Rc8 {[%clk
0:02:31.3]} 7. c3 {[%clk 0:03:03.4]} 7... e6 {[%clk 0:02:11.2]} 8. d4 {[%clk
0:03:03.6]} 8... cxd4 {[%clk 0:02:05.2]} 9. cxd4 {[%clk 0:03:05.5]} 9... Nb6
{[%clk 0:01:58.8]} 10. Nc3 {[%clk 0:03:05.9]} 10... Be7 {[%clk 0:01:55.3]} 11.
Bf4 {[%clk 0:03:05.5]} 11... O-O {[%clk 0:01:36.5]} 12. Rad1 {[%clk 0:03:06.1]}
12... d5 {[%clk 0:01:35.7]} 13. e5 {[%clk 0:03:06.6]} 13... Nfd7 {[%clk
0:01:31.3]} 14. Rd3 {[%clk 0:03:08]} 14... Bb4 {[%clk 0:01:24.5]} 15. Nb1 {[%clk
0:03:02.3]} 15... a5 {[%clk 0:01:19.2]} 16. Rfd1 {[%clk 0:02:53]} 16... Nc4
{[%clk 0:01:11.7]} 17. Ng5 {[%clk 0:02:48.5]} 17... h6 {[%clk 0:01:07.7]} 18.
Nh3 {[%clk 0:02:43.7]} 18... b5 {[%clk 0:00:49.6]} 19. b3 {[%clk 0:02:41.9]}
19... Na3 {[%clk 0:00:47]} 20. Nxa3 {[%clk 0:02:42]} 20... Bxa3 {[%clk
0:00:48.9]} 21. Qg4 {[%clk 0:02:36.7]} 21... Rc2 {[%clk 0:00:43.9]} 22. Bxh6
{[%clk 0:02:33.3]} 22... g6 {[%clk 0:00:43.8]} 23. Nf4 {[%clk 0:02:24.4]} 23...
Kh7 {[%clk 0:00:30.7]} 24. Rh3 {[%clk 0:02:24.1]} 1-0

[Event "*** Titled Tuesday 3|2 Blitz"]
[Site "Chess.com"]
[Date "2016.10.04"]
[Round "6"]
[White "GulamaliRises"]
[Black "Izoria123"]
[Result "0-1"]
[WhiteElo "2481"]
[BlackElo "2568"]
[TimeControl "180+2"]
[EndTime "18:16:00 PDT"]
[Termination "Izoria123 won by resignation"]

1. e4 {[%clk 0:03:02]} 1... c6 {[%clk 0:03:00.7]} 2. d4 {[%clk 0:03:00.5]} 2...
d5 {[%clk 0:03:02.6]} 3. f3 {[%clk 0:02:47.8]} 3... Qb6 {[%clk 0:02:58.8]} 4.
Nc3 {[%clk 0:02:48.4]} 4... dxe4 {[%clk 0:02:59.3]} 5. Nxe4 {[%clk 0:02:47.7]}
5... Nd7 {[%clk 0:02:59.2]} 6. c3 {[%clk 0:02:46.8]} 6... Ngf6 {[%clk
0:02:59.5]} 7. Bd3 {[%clk 0:02:43.8]} 7... e6 {[%clk 0:02:40.1]} 8. Ne2 {[%clk
0:02:42.7]} 8... c5 {[%clk 0:02:40.9]} 9. Be3 {[%clk 0:02:13.4]} 9... cxd4
{[%clk 0:02:34.3]} 10. Bxd4 {[%clk 0:02:11.9]} 10... Qxb2 {[%clk 0:02:34.8]} 11.
Nxf6+ {[%clk 0:01:18.5]} 11... gxf6 {[%clk 0:02:31.9]} 12. O-O {[%clk
0:00:58.5]} 12... a6 {[%clk 0:02:10.3]} 13. Rb1 {[%clk 0:00:08.6]} 13... Qa3
{[%clk 0:02:09.9]} 14. Nf4 {[%clk 0:00:05.4]} 14... Bc5 {[%clk 0:02:03.6]} 15.
Nh5 {[%clk 0:00:05.5]} 15... Qxc3 {[%clk 0:02:00.1]} 0-1

[Event "*** Titled Tuesday 3|2 Blitz"]
[Site "Chess.com"]
[Date "2016.10.04"]
[Round "6"]
[White "brightthunder"]
[Black "Scott-fox21"]
[Result "0-1"]
[WhiteElo "2291"]
[BlackElo "2167"]
[TimeControl "180+2"]
[EndTime "18:17:24 PDT"]
[Termination "Scott-fox21 won by resignation"]

1. e4 {[%clk 0:03:01.9]} 1... c5 {[%clk 0:02:59.8]} 2. Nf3 {[%clk 0:03:02.7]}
2... d6 {[%clk 0:03:00.7]} 3. d4 {[%clk 0:03:04.2]} 3... cxd4 {[%clk 0:03:02.6]}
4. Nxd4 {[%clk 0:03:05.8]} 4... Nf6 {[%clk 0:03:04]} 5. Nc3 {[%clk 0:03:07.4]}
5... Nc6 {[%clk 0:03:05.6]} 6. f3 {[%clk 0:03:08.2]} 6... g6 {[%clk 0:02:39.8]}
7. Be3 {[%clk 0:03:07.9]} 7... Bg7 {[%clk 0:02:40.5]} 8. Qd2 {[%clk 0:03:08.1]}
8... O-O {[%clk 0:02:39.9]} 9. Bc4 {[%clk 0:03:08.9]} 9... Bd7 {[%clk
0:02:36.8]} 10. O-O-O {[%clk 0:03:08.7]} 10... Na5 {[%clk 0:02:33.7]} 11. Bb3
{[%clk 0:03:06.8]} 11... Rb8 {[%clk 0:02:33]} 12. g4 {[%clk 0:03:05.4]} 12... b5
{[%clk 0:02:33.3]} 13. Bh6 {[%clk 0:03:03.3]} 13... Nc4 {[%clk 0:02:32.1]} 14.
Bxc4 {[%clk 0:02:57.6]} 14... bxc4 {[%clk 0:02:34]} 15. Bxg7 {[%clk 0:02:53.1]}
15... Kxg7 {[%clk 0:02:33.8]} 16. Kb1 {[%clk 0:02:54]} 16... Qb6 {[%clk
0:02:19.4]} 17. Qc1 {[%clk 0:02:54.6]} 17... Qb4 {[%clk 0:02:13.1]} 18. Ka1
{[%clk 0:02:54.5]} 18... a5 {[%clk 0:01:59.4]} 19. a3 {[%clk 0:02:54.2]} 19...
Qc5 {[%clk 0:01:49.3]} 20. Qd2 {[%clk 0:02:51.4]} 20... Rb7 {[%clk 0:01:39]} 21.
Rb1 {[%clk 0:02:51.2]} 21... Rfb8 {[%clk 0:01:39.2]} 22. h4 {[%clk 0:02:49.6]}
22... h5 {[%clk 0:01:34.6]} 23. g5 {[%clk 0:02:49.7]} 23... Ne8 {[%clk
0:01:24.5]} 24. Rhf1 {[%clk 0:02:40.6]} 24... e5 {[%clk 0:01:04]} 25. Nde2
{[%clk 0:02:40.2]} 25... Nc7 {[%clk 0:00:55.4]} 26. Ka2 {[%clk 0:02:35.9]} 26...
Nb5 {[%clk 0:00:41.4]} 27. Nxb5 {[%clk 0:02:34.3]} 27... Rxb5 {[%clk 0:00:42.1]}
28. Nc3 {[%clk 0:02:35.1]} 28... Rb4 {[%clk 0:00:21.3]} 29. f4 {[%clk
0:02:27.3]} 29... Qb6 {[%clk 0:00:21.2]} 30. Nd1 {[%clk 0:02:18]} 30... Rb5
{[%clk 0:00:09.2]} 31. c3 {[%clk 0:01:47.1]} 31... Rb3 {[%clk 0:00:06.4]} 32.
fxe5 {[%clk 0:01:40.9]} 32... Rxa3+ {[%clk 0:00:05.7]} 0-1